[Event "XXIX Cracovia 2018"]
[Site "Krakow"]
[Date "2018.12.28"]
[Round "2"]
[White "Kubicka, Anna"]
[Black "Baum, Jonasz"]
[Result "1/2-1/2"]
[ECO "B90"]
[WhiteElo "2168"]
[BlackElo "2302"]
[Annotator "NA"]
[PlyCount "77"]
[EventDate "2018.12.27"]
[EventType "swiss"]
[EventCountry "POL"]
[SourceTitle "playchess.com"]
[Source "ChessBase"]
[SourceQuality "1"]
[TimeControl "40/5400+30:1800+30"]

1. e4 {[%emt 0:00:00]} c5 {[%emt 0:00:00]} 2. Nf3 {[%emt 0:00:00]} d6 {[%emt 0:00:00]} 3. d4 {[%emt 0:00:00]} cxd4 {[%emt 0:00:00]} 4. Nxd4 {[%emt 0:00:00]} Nf6 {[%emt 0:00:00]} 5. Nc3 {[%emt 0:00:07]} a6 {[%emt 0:00:00]} 6. Be3 {[%emt 0:00:09]} e6 {[%emt 0:00:00]} 7. f3 {[%emt 0:00:05]} b5 {[%emt 0:00:09]} 8. g4 {[%emt 0:00:00]} h6 {[%emt 0:00:07]} 9. Qd2 {[%emt 0:00:30]} b4 {[%emt 0:00:30]} 10. Nce2 {[%emt 0:00:30]} e5 {[%emt 0:00:30]} 11. Nf5 {[%emt 0:00:30]} d5 {[%emt 0:18:32]} 12. g5 {[%emt 0:16:29]} hxg5 {[%emt 0:04:10]} 13. Bxg5 {[%emt 0:00:50]} Be6 {[%emt 0:05:10]} 14. Neg3 {[%emt 0:10:00]} d4 {[%emt 0:03:40]} 15. f4 {[%emt 0:06:03]} Nc6 {[%emt 0:00:59]} 16. Bg2 {[%emt 0:14:00]} exf4 {[%emt 0:08:38]} 17. Qxf4 {[%emt 0:04:11]} Qa5 {[%emt 0:14:45]} 18. O-O {[%emt 0:03:53]} O-O-O {[%emt 0:03:59]} 19. a3 {[%emt 0:06:35]} bxa3 {[%emt 0:01:17]} 20. bxa3 {[%emt 0:00:24]} Qc5 {[%emt 0:01:04]} 21. Kh1 {[%emt 0:03:18]} Ne5 {[%emt 0:00:07]} 22. h3 {[%emt 0:03:30]} Rd7 {[%emt 0:05:57]} 23. Nxg7 {[%emt 0:09:52]} Bxg7 {[%emt 0:01:34]} 24. Bxf6 {[%emt 0:01:03]} Ng6 {[%emt 0:00:42]} 25. Qg5 {[%emt 0:01:44]} Qxg5 {[%emt 0:00:59]} 26. Bxg5 {[%emt 0:00:02]} d3 {[%emt 0:04:00]} 27. Rac1 {[%emt 0:07:25]} Bb2 {[%emt 0:03:22]} 28. Rb1 {[%emt 0:02:40]} d2 {[%emt 0:01:12]} 29. Rfd1 {[%emt 0:00:49]} Bg4 {[%emt 0:04:20]} 30. Rxd2 {[%emt 0:00:55]} Rxd2 {[%emt 0:03:20]} 31. Bxd2 {[%emt 0:00:09]} Bxa3 {[%emt 0:06:53]} 32. Ra1 {[%emt 0:01:24]} Bd6 {[%emt 0:00:57]} 33. Nf5 {[%emt 0:00:34]} Bb8 {[%emt 0:03:55]} 34. Rxa6 {[%emt 0:01:27]} Bxh3 {[%emt 0:00:11]} 35. Bxh3 {[%emt 0:00:26]} Rxh3+ {[%emt 0:00:08]} 36. Kg1 {[%emt 0:00:10]} Nh4 {[%emt 0:04:38]} 37. Nxh4 {[%emt 0:00:32]} Rxh4 {[%emt 0:00:05]} 38. Rf6 {[%emt 0:01:02]} Rxe4 {[%emt 0:00:13]} 39. Rxf7 {[%emt 0:00:00]} 1/2-1/2

[Event "XXIX Cracovia 2018"]
[Site "Krakow"]
[Date "2018.12.28"]
[Round "2"]
[White "Luba, Lukasz"]
[Black "Lee, Qing Aun"]
[Result "0-1"]
[ECO "A00"]
[WhiteElo "2135"]
[BlackElo "2297"]
[Annotator "NA"]
[PlyCount "70"]
[EventDate "2018.12.27"]
[EventType "swiss"]
[EventCountry "POL"]
[SourceTitle "playchess.com"]
[Source "ChessBase"]
[SourceQuality "1"]
[TimeControl "40/5400+30:1800+30"]

1. a3 d5 {[%emt 0:03:41]} 2. d4 {[%emt 0:00:39]} Nf6 {[%emt 0:01:34]} 3. Nf3 {[%emt 0:02:17]} Bf5 {[%emt 0:02:01]} 4. Bf4 {[%emt 0:06:33]} e6 {[%emt 0:00:48]} 5. e3 {[%emt 0:04:52]} Bd6 {[%emt 0:04:54]} 6. Bg3 {[%emt 0:02:49]} O-O {[%emt 0:00:33]} 7. Bd3 {[%emt 0:00:33]} Bg6 {[%emt 0:03:33]} 8. Bxg6 {[%emt 0:00:22]} hxg6 {[%emt 0:00:22]} 9. Nbd2 {[%emt 0:00:29]} Nbd7 {[%emt 0:04:23]} 10. Ne5 {[%emt 0:07:09]} Bxe5 {[%emt 0:03:46]} 11. dxe5 {[%emt 0:00:10]} Nh5 {[%emt 0:00:19]} 12. f4 {[%emt 0:04:02]} f6 {[%emt 0:17:34]} 13. Qg4 {[%emt 0:10:51]} Qe8 {[%emt 0:02:38]} 14. Nf3 {[%emt 0:10:42]} c5 {[%emt 0:02:56]} 15. O-O-O {[%emt 0:00:26]} b5 {[%emt 0:03:07]} 16. Be1 {[%emt 0:03:55]} a5 {[%emt 0:03:29]} 17. Qh3 {[%emt 0:00:12]} fxe5 {[%emt 0:05:24]} 18. fxe5 {[%emt 0:00:07]} Rxf3 {[%emt 0:00:14]} 19. gxf3 {[%emt 0:02:09]} Nxe5 {[%emt 0:00:35]} 20. Rg1 {[%emt 0:06:10]} Ra6 {[%emt 0:09:15]} 21. Rg5 {[%emt 0:10:12]} Nc4 {[%emt 0:00:30]} 22. f4 {[%emt 0:06:07]} b4 {[%emt 0:00:54]} 23. b3 {[%emt 0:01:56]} Nxa3 {[%emt 0:01:37]} 24. Re5 {[%emt 0:02:34]} c4 {[%emt 0:05:20]} 25. Rdxd5 {[%emt 0:03:47]} cxb3 {[%emt 0:06:30]} 26. Rxh5 {[%emt 0:00:20]} gxh5 {[%emt 0:00:07]} 27. Rxh5 {[%emt 0:00:03]} Qg6 {[%emt 0:01:59]} 28. f5 {[%emt 0:00:33]} exf5 {[%emt 0:01:08]} 29. Rh8+ {[%emt 0:00:06]} Kf7 {[%emt 0:00:03]} 30. Qf3 {[%emt 0:00:28]} Rc6 {[%emt 0:00:31]} 31. Kb2 {[%emt 0:08:59]} Rxc2+ {[%emt 0:00:51]} 32. Kxb3 {[%emt 0:00:05]} Qe6+ {[%emt 0:00:06]} 33. Ka4 {[%emt 0:00:07]} Qd7+ {[%emt 0:00:07]} 34. Kb3 {[%emt 0:00:29]} Qd3+ {[%emt 0:00:05]} 35. Ka4 {[%emt 0:00:09]} Qb5+ {[%emt 0:00:05]} 0-1

[Event "XXIX Cracovia 2018"]
[Site "Krakow"]
[Date "2018.12.28"]
[Round "2"]
[White "Zaleski, Lukasz"]
[Black "Roshka, Yevgeniy"]
[Result "1-0"]
[ECO "B06"]
[WhiteElo "2116"]
[BlackElo "2293"]
[Annotator "NA"]
[PlyCount "87"]
[EventDate "2018.12.27"]
[EventType "swiss"]
[EventCountry "POL"]
[SourceTitle "playchess.com"]
[Source "ChessBase"]
[SourceQuality "1"]
[TimeControl "40/5400+30:1800+30"]

1. e4 {[%emt 0:00:00]} g6 {[%emt 0:00:00]} 2. d4 {[%emt 0:00:00]} Bg7 {[%emt 0:00:00]} 3. Nc3 {[%emt 0:00:02]} d6 {[%emt 0:00:00]} 4. Be3 a6 5. Qd2 Nd7 6. O-O-O b5 7. Kb1 Bb7 8. f3 Rc8 9. g4 h6 10. h4 Nb6 11. a3 Nf6 12. Nh3 Nfd7 13. f4 c5 14. d5 g5 15. hxg5 hxg5 16. Be2 gxf4 17. Nxf4 Rg8 18. g5 Ne5 19. Bh5 Nbc4 20. Qf2 Qa5 21. g6 fxg6 22. Nxg6 Nxg6 23. Bxg6+ Kd8 24. Qf7 Bxc3 25. Rh7 Bf6 26. e5 Nxe5 27. Qxg8+ Kc7 28. Qe6 Kb8 29. Rxe7 Bxe7 30. Qxe7 Qc7 31. Qe6 Rf8 32. Be4 Nc4 33. Bh6 Bc8 34. Bxf8 Bxe6 35. dxe6 d5 36. Rxd5 Qf4 37. e7 Qxe4 38. Rd8+ Kc7 39. e8=Q Nd2+ 40. Kc1 Qh1+ 41. Kxd2 Qg2+ 42. Kc3 Qg3+ 43. Rd3 Qe1+ 44. Qxe1 1-0

[Event "XXIX Cracovia 2018"]
[Site "Krakow"]
[Date "2018.12.28"]
[Round "2"]
[White "Janus, Przemyslaw"]
[Black "Mielczarek, Daniel"]
[Result "1/2-1/2"]
[ECO "E15"]
[WhiteElo "2091"]
[BlackElo "1930"]
[Annotator "NA"]
[PlyCount "50"]
[EventDate "2018.12.27"]
[EventType "swiss"]
[EventCountry "POL"]
[SourceTitle "playchess.com"]
[Source "ChessBase"]
[SourceQuality "1"]
[TimeControl "40/5400+30:1800+30"]

1. d4 {[%emt 0:00:00]} Nf6 {[%emt 0:00:00]} 2. c4 {[%emt 0:00:17]} e6 {[%emt 0:00:00]} 3. Nf3 {[%emt 0:01:49]} b6 {[%emt 0:01:14]} 4. g3 {[%emt 0:03:38]} Bb7 {[%emt 0:01:11]} 5. Bg2 {[%emt 0:00:10]} c5 {[%emt 0:01:04]} 6. dxc5 {[%emt 0:06:24]} Bxc5 {[%emt 0:00:32]} 7. O-O {[%emt 0:00:24]} O-O {[%emt 0:00:54]} 8. Nc3 {[%emt 0:01:10]} Nc6 {[%emt 0:04:46]} 9. Bg5 {[%emt 0:02:46]} Be7 {[%emt 0:02:29]} 10. Qa4 {[%emt 0:05:46]} Na5 {[%emt 0:03:58]} 11. Ne5 {[%emt 0:14:28]} Bxg2 {[%emt 0:07:09]} 12. Kxg2 {[%emt 0:00:08]} Qc7 {[%emt 0:00:31]} 13. Bxf6 {[%emt 0:17:25]} gxf6 {[%emt 0:04:06]} 14. Nf3 {[%emt 0:03:09]} Nxc4 {[%emt 0:16:25]} 15. Nb5 {[%emt 0:04:56]} Qc6 {[%emt 0:00:46]} 16. Rfc1 {[%emt 0:01:00]} a6 {[%emt 0:07:55]} 17. Rxc4 {[%emt 0:11:25]} Qxb5 {[%emt 0:01:00]} 18. Qxb5 {[%emt 0:01:22]} axb5 {[%emt 0:00:08]} 19. Rc7 {[%emt 0:00:08]} Rfd8 {[%emt 0:00:39]} 20. a3 {[%emt 0:01:38]} b4 {[%emt 0:00:45]} 21. a4 {[%emt 0:01:28]} Kf8 {[%emt 0:06:51]} 22. b3 {[%emt 0:03:43]} Bd6 {[%emt 0:08:26]} 23. Rb7 {[%emt 0:01:24]} Rab8 {[%emt 0:00:46]} 24. Rxb8 {[%emt 0:00:42]} Rxb8 {[%emt 0:00:13]} 25. Rc1 {[%emt 0:00:27]} Ke7 {[%emt 0:02:31]} 1/2-1/2

[Event "XXIX Cracovia 2018"]
[Site "Krakow"]
[Date "2018.12.28"]
[Round "2"]
[White "Romashov, Anton"]
[Black "Jeda, Maciej"]
[Result "1-0"]
[ECO "A48"]
[WhiteElo "2076"]
[BlackElo "1917"]
[Annotator "NA"]
[PlyCount "63"]
[EventDate "2018.12.27"]
[EventType "swiss"]
[EventCountry "POL"]
[SourceTitle "playchess.com"]
[Source "ChessBase"]
[SourceQuality "1"]
[TimeControl "40/5400+30:1800+30"]

1. d4 {[%emt 0:00:00]} Nf6 {[%emt 0:00:00]} 2. Nf3 {[%emt 0:00:00]} g6 {[%emt 0:00:00]} 3. Bf4 {[%emt 0:00:00]} Bg7 {[%emt 0:00:10]} 4. e3 {[%emt 0:00:25]} O-O {[%emt 0:00:15]} 5. Bd3 {[%emt 0:00:09]} d6 {[%emt 0:01:36]} 6. O-O {[%emt 0:01:26]} Nd5 {[%emt 0:17:53]} 7. Bg5 {[%emt 0:01:26]} Nb4 {[%emt 0:05:47]} 8. Bc4 {[%emt 0:02:11]} d5 {[%emt 0:01:48]} 9. Bb3 {[%emt 0:00:15]} c6 {[%emt 0:09:04]} 10. Qd2 {[%emt 0:02:25]} N4a6 {[%emt 0:01:02]} 11. c4 {[%emt 0:01:17]} Bg4 {[%emt 0:11:37]} 12. cxd5 {[%emt 0:03:21]} Bxf3 13. gxf3 {[%emt 0:00:15]} cxd5 {[%emt 0:05:58]} 14. Nc3 {[%emt 0:05:35]} Nc7 {[%emt 0:00:56]} 15. Rac1 {[%emt 0:00:27]} Nc6 {[%emt 0:01:49]} 16. Na4 {[%emt 0:00:27]} h6 {[%emt 0:06:45]} 17. Bh4 {[%emt 0:01:37]} Na6 {[%emt 0:09:28]} 18. Nc5 {[%emt 0:02:23]} Nxc5 {[%emt 0:01:35]} 19. Rxc5 {[%emt 0:00:31]} g5 {[%emt 0:03:35]} 20. Rxd5 {[%emt 0:02:27]} Qb6 {[%emt 0:00:49]} 21. Bg3 {[%emt 0:00:38]} Rad8 {[%emt 0:01:27]} 22. Rc1 {[%emt 0:03:01]} e6 {[%emt 0:05:35]} 23. Rdc5 {[%emt 0:04:14]} Kh8 {[%emt 0:05:44]} 24. Ba4 {[%emt 0:02:35]} Nxd4 {[%emt 0:06:15]} 25. exd4 {[%emt 0:01:25]} Bxd4 {[%emt 0:00:02]} 26. Rb5 {[%emt 0:02:40]} Qa6 {[%emt 0:00:44]} 27. Rb4 {[%emt 0:00:16]} e5 {[%emt 0:01:20]} 28. Qe1 {[%emt 0:01:10]} Rd5 {[%emt 0:02:01]} 29. Qe4 {[%emt 0:01:27]} Ra5 {[%emt 0:00:26]} 30. Bb3 {[%emt 0:05:04]} f5 {[%emt 0:00:40]} 31. Qxb7 {[%emt 0:00:11]} Qxb7 {[%emt 0:00:35]} 32. Rxb7 {[%emt 0:00:03]} 1-0

[Event "XXIX Cracovia 2018"]
[Site "Krakow"]
[Date "2018.12.28"]
[Round "2"]
[White "Andronescu, Madalin"]
[Black "Seregina, Maria"]
[Result "1-0"]
[ECO "B06"]
[WhiteElo "2070"]
[BlackElo "1907"]
[Annotator "NA"]
[PlyCount "79"]
[EventDate "2018.12.27"]
[EventType "swiss"]
[EventCountry "POL"]
[SourceTitle "playchess.com"]
[Source "ChessBase"]
[SourceQuality "1"]
[TimeControl "40/5400+30:1800+30"]

1. e4 g6 2. d4 Bg7 3. c4 Nf6 4. e5 Ng8 5. Nc3 d6 6. Nf3 Nc6 7. exd6 exd6 8. Be2 Nge7 9. d5 Ne5 10. O-O O-O 11. Bf4 Nf5 12. Qd2 h6 13. h3 Bd7 14. Rfe1 Kh7 15. b4 Nh4 16. Nxh4 Qxh4 17. Rac1 f5 18. Bg3 Qg5 19. Qxg5 hxg5 20. f4 gxf4 21. Bxf4 Bf6 22. c5 g5 23. Bd2 g4 24. hxg4 fxg4 25. cxd6 cxd6 26. Ne4 Bd8 27. Be3 Nf7 28. Rf1 Kg8 29. Nf6+ Bxf6 30. Rxf6 Rfe8 31. Rc3 Re5 32. Bxg4 Bxg4 33. Rg6+ Kf8 34. Rxg4 Rae8 35. Bd4 Re1+ 36. Kh2 R1e4 37. Bg7+ Kg8 38. Rgg3 Kh7 39. Bf6 Ne5 40. Rg7+ 1-0

[Event "XXIX Cracovia 2018"]
[Site "Krakow"]
[Date "2018.12.28"]
[Round "2"]
[White "Patsia, Zviad"]
[Black "Shamatava, Nikolozi"]
[Result "1-0"]
[ECO "A34"]
[WhiteElo "2058"]
[BlackElo "1866"]
[Annotator "NA"]
[PlyCount "107"]
[EventDate "2018.12.27"]
[EventType "swiss"]
[EventCountry "POL"]
[SourceTitle "playchess.com"]
[Source "ChessBase"]
[SourceQuality "1"]
[TimeControl "40/5400+30:1800+30"]

1. c4 Nf6 2. Nc3 c5 3. g3 Nc6 4. Bg2 e6 5. Nf3 Be7 6. O-O O-O 7. d4 cxd4 8. Nxd4 a6 9. b3 Qc7 10. Bb2 d6 11. Rc1 Nxd4 12. Qxd4 e5 13. Nd5 Nxd5 14. Qxd5 Ra7 15. c5 dxc5 16. Bxe5 Qd7 17. Qxd7 Bxd7 18. Bc7 Bc6 19. Bxc6 bxc6 20. Bb6 Rd7 21. Bxc5 Bxc5 22. Rxc5 Rd2 23. Ra5 Rxe2 24. Rd1 f5 25. Rd4 g5 26. Rd7 f4 27. Rxg5+ Kh8 28. Rgg7 Rf6 29. Rxh7+ Kg8 30. Rhe7 Rxa2 31. Re8+ Rf8 32. Rxf8+ Kxf8 33. gxf4 Rb2 34. Rd3 Kf7 35. Kg2 Ke6 36. Kf3 Rb1 37. Re3+ Kf5 38. Rc3 a5 39. Rc5+ Ke6 40. Rxc6+ Kd5 41. Rc3 Rh1 42. Kg2 Rd1 43. Re3 Kc5 44. h4 Rd8 45. f5 Rf8 46. Rf3 Kd5 47. f6 Rf7 48. Kg3 Ke6 49. Kg4 Kd7 50. Kg5 Ke8 51. Kg6 Rc7 52. Rf5 Kf8 53. Rxa5 Rc8 54. Rh5 1-0

[Event "XXIX Cracovia 2018"]
[Site "Krakow"]
[Date "2018.12.28"]
[Round "2"]
[White "Lada, Ireneusz"]
[Black "Kusnetsov, Igor"]
[Result "0-1"]
[ECO "A30"]
[WhiteElo "1944"]
[BlackElo "2094"]
[Annotator "NA"]
[PlyCount "86"]
[EventDate "2018.12.27"]
[EventType "swiss"]
[EventCountry "POL"]
[SourceTitle "playchess.com"]
[Source "ChessBase"]
[SourceQuality "1"]
[TimeControl "40/5400+30:1800+30"]

1. c4 {[%emt 0:00:00]} c5 {[%emt 0:00:21]} 2. Nf3 {[%emt 0:00:00]} Nc6 {[%emt 0:00:11]} 3. Nc3 {[%emt 0:01:27]} e5 {[%emt 0:01:26]} 4. g3 {[%emt 0:00:36]} g6 {[%emt 0:00:25]} 5. Bg2 {[%emt 0:00:11]} Bg7 {[%emt 0:00:06]} 6. O-O {[%emt 0:01:19]} Nge7 {[%emt 0:00:16]} 7. d3 {[%emt 0:00:53]} O-O {[%emt 0:00:50]} 8. a3 {[%emt 0:01:19]} d6 {[%emt 0:03:20]} 9. Rb1 {[%emt 0:00:18]} a5 {[%emt 0:02:16]} 10. Ne1 {[%emt 0:06:07]} Be6 {[%emt 0:01:29]} 11. Nd5 {[%emt 0:00:35]} Rb8 {[%emt 0:01:04]} 12. Bg5 {[%emt 0:03:59]} f6 {[%emt 0:03:41]} 13. Bd2 {[%emt 0:00:56]} b5 {[%emt 0:05:39]} 14. b3 {[%emt 0:15:55]} f5 {[%emt 0:14:37]} 15. Bg5 {[%emt 0:06:46]} h6 {[%emt 0:03:41]} 16. Nxe7+ {[%emt 0:02:50]} Nxe7 {[%emt 0:00:09]} 17. Bxe7 {[%emt 0:00:16]} Qxe7 {[%emt 0:00:02]} 18. Bd5 {[%emt 0:01:32]} Bxd5 {[%emt 0:00:41]} 19. cxd5 {[%emt 0:00:09]} e4 {[%emt 0:00:38]} 20. Qd2 {[%emt 0:03:35]} Ra8 {[%emt 0:13:43]} 21. Ng2 {[%emt 0:04:50]} g5 {[%emt 0:02:38]} 22. a4 {[%emt 0:08:26]} f4 {[%emt 0:12:24]} 23. dxe4 {[%emt 0:05:08]} Qxe4 {[%emt 0:02:20]} 24. axb5 {[%emt 0:00:46]} Be5 {[%emt 0:03:09]} 25. Rfd1 {[%emt 0:05:05]} Rfb8 {[%emt 0:01:56]} 26. gxf4 gxf4 {[%emt 0:01:31]} 27. Rbc1 {[%emt 0:08:19]} Ra7 {[%emt 0:04:25]} 28. f3 {[%emt 0:05:00]} Qg6 {[%emt 0:07:06]} 29. Qd3 {[%emt 0:01:03]} Qxd3 {[%emt 0:00:31]} 30. Rxd3 {[%emt 0:00:24]} Rxb5 {[%emt 0:00:36]} 31. Rc4 {[%emt 0:00:53]} Rb4 {[%emt 0:00:39]} 32. e3 {[%emt 0:05:16]} Rxc4 {[%emt 0:00:59]} 33. bxc4 {[%emt 0:00:05]} a4 {[%emt 0:00:55]} 34. Ra3 {[%emt 0:00:03]} fxe3 {[%emt 0:02:42]} 35. Nxe3 {[%emt 0:00:23]} Bd4 {[%emt 0:00:01]} 36. Kf2 {[%emt 0:00:01]} Re7 {[%emt 0:00:54]} 37. Rxa4 {[%emt 0:01:08]} Rxe3 {[%emt 0:00:19]} 38. Kg3 {[%emt 0:00:01]} Be5+ {[%emt 0:02:24]} 39. Kg4 {[%emt 0:00:13]} Kg7 {[%emt 0:00:52]} 40. h4 {[%emt 0:00:00]} Kg6 {[%emt 0:00:00]} 41. h5+ {[%emt 0:01:33]} Kf6 {[%emt 0:01:48]} 42. Ra8 {[%emt 0:00:37]} Rc3 {[%emt 0:00:17]} 43. Ra4 {[%emt 0:01:00]} Rc1 {[%emt 0:00:13]} 0-1

[Event "XXIX Cracovia 2018"]
[Site "Krakow"]
[Date "2018.12.28"]
[Round "2"]
[White "Bakalarz, Leszek"]
[Black "Siprashvili, Ivane"]
[Result "1/2-1/2"]
[ECO "C16"]
[WhiteElo "1927"]
[BlackElo "2074"]
[Annotator "NA"]
[PlyCount "153"]
[EventDate "2018.12.27"]
[EventType "swiss"]
[EventCountry "POL"]
[SourceTitle "playchess.com"]
[Source "ChessBase"]
[SourceQuality "1"]
[TimeControl "40/5400+30:1800+30"]

1. e4 e6 2. d4 d5 3. Nc3 Bb4 4. e5 b6 5. Qg4 Bf8 6. Be3 Qd7 7. O-O-O Ba6 8. Bxa6 Nxa6 9. Qe2 Nb8 10. f4 Ne7 11. Nf3 h5 12. Nh4 g6 13. h3 Nbc6 14. g4 Na5 15. b3 Nec6 16. Kb2 Qe7 17. Ng2 Qb4 18. Nb1 Nc4+ 19. Kc1 Nxe3 20. c3 Qe7 21. Nxe3 O-O-O 22. Kb2 Kb7 23. f5 Bh6 24. f6 Qd7 25. Ng2 Na5 26. gxh5 gxh5 27. Nh4 c5 28. Nf3 c4 29. h4 cxb3 30. axb3 a6 31. Ng5 Rc8 32. Na3 Bf8 33. Nc2 Rc7 34. Ra1 Qb5 35. Qxb5 axb5 36. Rh3 Rg8 37. Rc1 Bh6 38. Rg3 Bxg5 39. Rxg5 Rgc8 40. Nb4 Nc6 41. Nxc6 Rxc6 42. b4 Rh8 43. Rcg1 Rcc8 44. Rg7 Rcf8 45. Kc2 Kb8 46. Kb3 Kc7 47. Ra1 Kb7 48. Rg2 Rb8 49. Rga2 Kc7 50. Ra7+ Rb7 51. Rxb7+ Kxb7 52. Rg1 Kc7 53. Rg7 Rf8 54. Rh7 Kd7 55. Rxh5 Rg8 56. Rg5 Rh8 57. h5 Ke8 58. Rg1 Rxh5 59. Ra1 Rh3 60. Ra8+ Kd7 61. Ra7+ Kc6 62. Ra8 Rg3 63. Rf8 Rh3 64. Kc2 Rh7 65. Kd3 Rh3+ 66. Ke2 Rg3 67. c4 dxc4 68. Rxf7 c3 69. Rg7 c2 70. Kd2 Rc3 71. Kc1 Kd5 72. Rd7+ Ke4 73. f7 Rc8 74. Re7 Rf8 75. Rd7 Rc8 76. d5 Kxe5 77. Re7 1/2-1/2

[Event "XXIX Cracovia 2018"]
[Site "Krakow"]
[Date "2018.12.28"]
[Round "2"]
[White "Gawronski, Lukasz"]
[Black "Ilandzis, Spyridon"]
[Result "1-0"]
[ECO "A10"]
[WhiteElo "1916"]
[BlackElo "2052"]
[Annotator "NA"]
[PlyCount "60"]
[EventDate "2018.12.27"]
[EventType "swiss"]
[EventCountry "POL"]
[SourceTitle "playchess.com"]
[Source "ChessBase"]
[SourceQuality "1"]
[TimeControl "40/5400+30:1800+30"]

1. c4 {[%emt 0:00:19]} b6 {[%emt 0:00:03]} 2. Nc3 {[%emt 0:00:44]} Bb7 {[%emt 0:00:19]} 3. e4 {[%emt 0:00:50]} e6 {[%emt 0:00:18]} 4. d4 {[%emt 0:00:34]} Bb4 {[%emt 0:00:38]} 5. f3 {[%emt 0:03:38]} f5 {[%emt 0:00:49]} 6. exf5 {[%emt 0:01:41]} Nh6 {[%emt 0:01:11]} 7. fxe6 {[%emt 0:01:36]} Nf5 {[%emt 0:01:00]} 8. Bf4 {[%emt 0:02:49]} dxe6 {[%emt 0:05:02]} 9. Qa4+ {[%emt 0:01:49]} Nc6 {[%emt 0:00:34]} 10. O-O-O {[%emt 0:01:23]} Nfxd4 {[%emt 0:10:50]} 11. Be3 {[%emt 0:01:00]} e5 {[%emt 0:03:10]} 12. Bd3 {[%emt 0:00:50]} O-O {[%emt 0:06:49]} 13. Be4 {[%emt 0:01:19]} Bc5 {[%emt 0:10:25]} 14. b4 {[%emt 0:24:08]} Ne2+ {[%emt 0:27:13]} 15. Ngxe2 {[%emt 0:06:47]} Bxe3+ {[%emt 0:00:11]} 16. Kb1 {[%emt 0:01:02]} Qf6 {[%emt 0:00:40]} 17. Nd5 {[%emt 0:04:48]} Qh6 {[%emt 0:00:42]} 18. Ng3 {[%emt 0:19:19]} Bd4 {[%emt 0:14:00]} 19. Nf5 {[%emt 0:04:57]} Rxf5 {[%emt 0:05:59]} 20. Bxf5 {[%emt 0:00:10]} a5 {[%emt 0:00:35]} 21. Nxc7 {[%emt 0:04:15]} Qg5 {[%emt 0:03:39]} 22. Be6+ {[%emt 0:01:51]} Kh8 {[%emt 0:00:03]} 23. Nxa8 {[%emt 0:01:16]} Qxg2 {[%emt 0:03:07]} 24. Qc2 {[%emt 0:07:55]} Qxc2+ {[%emt 0:00:21]} 25. Kxc2 {[%emt 0:00:01]} Nxb4+ {[%emt 0:00:09]} 26. Kb3 {[%emt 0:00:42]} Bxa8 {[%emt 0:00:23]} 27. Rhf1 {[%emt 0:02:08]} Bc6 {[%emt 0:01:02]} 28. f4 {[%emt 0:02:20]} Be4 {[%emt 0:00:11]} 29. fxe5 {[%emt 0:01:14]} Bc2+ {[%emt 0:01:46]} 30. Ka3 {[%emt 0:00:09]} Bc5 1-0

[Event "XXIX Cracovia 2018"]
[Site "Krakow"]
[Date "2018.12.28"]
[Round "2"]
[White "Jajte-Pachota, Jerzy"]
[Black "Kumor, Lukasz"]
[Result "1/2-1/2"]
[ECO "B20"]
[WhiteElo "1905"]
[BlackElo "2040"]
[Annotator "NA"]
[PlyCount "173"]
[EventDate "2018.12.27"]
[EventType "swiss"]
[EventCountry "POL"]
[SourceTitle "playchess.com"]
[Source "ChessBase"]
[SourceQuality "1"]
[TimeControl "40/5400+30:1800+30"]

1. e4 c5 2. Bc4 Nc6 3. Nc3 Nf6 4. d3 e6 5. Nge2 d5 6. exd5 exd5 7. Bb3 d4 8. Nb1 Bd6 9. Bf4 O-O 10. O-O Bg4 11. Bxd6 Qxd6 12. Nd2 Qe5 13. Re1 Rae8 14. f3 Be6 15. Ng3 Qc7 16. Nde4 Nd7 17. Qd2 Nb4 18. a3 Nc6 19. Ba4 a6 20. Bxc6 Qxc6 21. Qf4 Bd5 22. Nf5 g6 23. Qg3 Kh8 24. Nh6 f5 25. Ng5 Nf6 26. Rxe8 Rxe8 27. Nhf7+ Kg7 28. Nd6 Re7 29. Nc4 Bxc4 30. dxc4 h6 31. Nh3 Nh5 32. Qf2 Qe6 33. b3 Qe5 34. f4 Qe3 35. Kf1 Nf6 36. Re1 Qxe1+ 37. Qxe1 Rxe1+ 38. Kxe1 Ng4 39. Kd2 Nxh2 40. Nf2 Nf1+ 41. Kc1 Ne3 42. g3 Kf6 43. Nd3 b6 44. Ne5 Nf1 45. Nd7+ Kf7 46. Nxb6 Nxg3 47. b4 cxb4 48. axb4 Ne2+ 49. Kd2 Nxf4 50. Nd7 h5 51. b5 axb5 52. cxb5 Ke6 53. Nc5+ Kd5 54. b6 Kc6 55. b7 Kc7 56. Ke1 Nd5 57. Kf2 Kb8 58. Ne6 Kxb7 59. Nxd4 Kb6 60. Kg3 Kc5 61. Nf3 Kd6 62. Kh4 Ke6 63. Kg5 Ne7 64. c4 Kf7 65. Ne5+ Ke6 66. Nf3 Kf7 67. Ne5+ Kg7 68. c5 h4 69. Kxh4 Kf6 70. Nd7+ Ke6 71. Nb6 Nd5 72. Nc4 Kf6 73. c6 g5+ 74. Kh5 Nf4+ 75. Kh6 Nd5 76. Kh5 Nf4+ 77. Kh6 Nd5 78. Kh5 g4 79. Ne3 Nf4+ 80. Kh4 Ng6+ 81. Kh5 Ne7 82. Nxg4+ Ke6 83. Kg5 Nd5 84. c7 Nxc7 85. Ne3 Nd5 86. Nxd5 Kxd5 87. Kxf5 1/2-1/2

[Event "XXIX Cracovia 2018"]
[Site "Krakow"]
[Date "2018.12.29"]
[Round "3"]
[White "Janik, Igor"]
[Black "Belous, Mikhail"]
[Result "1-0"]
[ECO "E63"]
[WhiteElo "2476"]
[BlackElo "2299"]
[Annotator "ChessBase"]
[PlyCount "83"]
[EventDate "2018.12.27"]
[EventType "swiss"]
[EventCountry "POL"]
[SourceTitle "playchess.com"]
[Source "ChessBase"]
[SourceQuality "1"]
[TimeControl "40/5400+30:1800+30"]

1. d4 {[%emt 0:00:00]} Nf6 {[%emt 0:00:00]} 2. c4 {[%emt 0:00:00]} g6 {[%emt 0:00:02]} 3. Nf3 {[%emt 0:00:00]} Bg7 {[%emt 0:00:11]} 4. g3 {[%emt 0:00:00]} O-O {[%emt 0:00:21]} 5. Bg2 {[%emt 0:00:20]} d6 {[%emt 0:00:19]} 6. O-O {[%emt 0:00:08]} Nc6 {[%emt 0:01:11]} 7. Nc3 {[%emt 0:00:36]} a6 {[%emt 0:02:54]} 8. Qc2 {[%emt 0:00:08]} Rb8 {[%emt 0:06:32]} 9. Rd1 {[%emt 0:01:57]} Bd7 {[%emt 0:03:20]} 10. e4 {[%emt 0:00:15]} b5 {[%emt 0:05:10]} 11. e5 {[%emt 0:06:47]} Ne8 {[%emt 0:02:41]} 12. c5 {[%emt 0:01:05]} Qc8 {[%emt 0:20:32]} 13. Bf4 {[%emt 0:04:47]} h6 {[%emt 0:09:25]} 14. h4 {[%emt 0:01:51]} dxc5 {[%emt 0:05:57]} 15. dxc5 {[%emt 0:03:01]} Bg4 {[%emt 0:00:49]} 16. Qe4 {[%emt 0:00:52]} Qe6 {[%emt 0:03:29]} 17. Re1 {[%emt 0:06:22]} b4 {[%emt 0:06:06]} 18. Na4 {[%emt 0:02:52]} Bf5 {[%emt 0:03:53]} 19. Qe3 {[%emt 0:00:19]} Kh7 {[%emt 0:00:34]} 20. b3 {[%emt 0:02:53]} Rd8 {[%emt 0:01:25]} 21. Bf1 {[%emt 0:01:56]} Bg4 {[%emt 0:03:17]} 22. Nh2 {[%emt 0:05:01]} Nd4 {[%emt 0:01:48]} 23. Bc4 {[%emt 0:05:29]} Qc8 {[%emt 0:02:12]} 24. Rac1 {[%emt 0:06:02]} a5 {[%emt 0:15:13]} 25. f3 {[%emt 0:05:24]} Bf5 {[%emt 0:00:25]} 26. g4 {[%emt 0:00:58]} Be6 {[%emt 0:01:54]} 27. Bd3 {[%emt 0:00:54]} Qa8 {[%emt 0:02:27]} 28. Be4 {[%emt 0:03:12]} Qa6 {[%emt 0:00:12]} 29. h5 {[%emt 0:02:19]} c6 {[%emt 0:01:18]} 30. Nb2 {[%emt 0:02:47]} Nc7 {[%emt 0:00:23]} 31. Bd3 {[%emt 0:00:15]} Ncb5 {[%emt 0:00:40]} 32. Qe4 {[%emt 0:00:44]} Kg8 {[%emt 0:00:46]} 33. hxg6 {[%emt 0:01:14]} fxg6 {[%emt 0:00:06]} 34. Bxh6 {[%emt 0:00:46]} Bf5 {[%emt 0:00:36]} 35. gxf5 {[%emt 0:00:16]} Bxh6 {[%emt 0:00:03]} 36. f6 {[%emt 0:01:21]} Nf5 {[%emt 0:00:38]} 37. Qg4 {[%emt 0:01:29]} Kh8 {[%emt 0:01:07]} 38. Bxf5 {[%emt 0:00:32]} gxf5 {[%emt 0:00:09]} 39. Qh5 {[%emt 0:00:08]} Kh7 {[%emt 0:00:17]} 40. Qxf5+ {[%emt 0:00:00]} Kh8 {[%emt 0:00:00]} 41. Qh5 {[%emt 0:00:23]} Kh7 {[%emt 0:00:13]} 42. Ng4 {[%emt 0:00:03]} 1-0